Cogmind - Beta 10.1 *** ADVENTURER MODE // 2020.10.22 @ 20:41:37 Player: James Result: Destroyed by G-34 Mercenary with Small Laser Performance ------------- Evolutions (1) 500 Regions Visited (3) 600 Robots Destroyed (31) 155 Value Destroyed (913) 913 Prototype IDs (3) 60 Alien Tech Used (0) 0 Bonus (407) 407 TOTAL SCORE: 2635 Bonus ------- Follower Combat Kills 407 Cogmind --------- Core Integrity 0/400 Matter 300/300 Energy 100/100 System Corruption 0% Temperature Cool (15) Movement Core (200) Ox3 Location -9/Storage Parts ------- > --- POWER (2) -------- (None) > --- PROPULSION (2) --- (None) > --- UTILITY (2) ------ Medium Storage Unit Improved Power Shielding > --- WEAPON (3) ------- (None) > --- INVENTORY (8) ---- Aluminum Leg Small Storage Unit Light Armor Plating Drone Bay (2/2) Drone Bay (2/2) Drone Bay (2/2) Drone Bay (2/2) Peak State ------------ > --- POWER ------------ Ion Engine Light Ion Engine > --- PROPULSION ------- Aluminum Leg Aluminum Leg > --- UTILITY ---------- Medium Storage Unit Improved Power Shielding > --- WEAPON ----------- Pulse Rifle Pulse Rifle Beamcaster > --- INVENTORY -------- Aluminum Leg Small Storage Unit Light Armor Plating Drone Bay Drone Bay Drone Bay Drone Bay [Rating: 21] Favorites ----------- Power Ion Engine Engine Ion Engine Propulsion Aluminum Leg Leg Aluminum Leg Utility Medium Storage Unit Storage Medium Storage Unit Processor Signal Interpreter Protection Improved Power Shielding Weapon Pulse Rifle Energy Gun Pulse Rifle Ballistic Gun Assault Rifle Build | -11 -10 -9 -9 ------- Run | Scr Mat Mat Sto Slots Evolved 2 | . . 2 . Power 1 | . . 1 . Propulsion . | . . . . Utility . | . . . . Weapon 1 | . . 1 . Parts Attached 20 | 7 2 7 4 Power 3 | 2 . 1 . Engine 3 | 2 . 1 . Core . | . . . . Reactor . | . . . . Propulsion 4 | 2 . 1 1 Treads . | . . . . Leg 4 | 2 . 1 1 Wheel . | . . . . Hover . | . . . . Flight . | . . . . Utility 4 | 1 2 1 . Device . | . . . . Storage 2 | 1 1 . . Processor 1 | . 1 . . Hackware . | . . . . Protection 1 | . . 1 . Artifact . | . . . . Weapon 9 | 2 . 4 3 Energy Gun 8 | 1 . 4 3 Energy Cannon . | . . . . Ballistic Gun 1 | 1 . . . Ballistic Cannon . | . . . . Launcher . | . . . . Special Weapon . | . . . . Impact Weapon . | . . . . Slashing Weapon . | . . . . Piercing Weapon . | . . . . Special Melee Weapon . | . . . . Unidentified Prototypes . | . . . . Parts Lost 11 | . . 1 10 Power 2 | . . . 2 Propulsion 2 | . . . 2 Utility . | . . . . Weapon 7 | . . 1 6 Highest Loss Streak 7 | . . 1 7 Average Slot Usage (%) 94 | . 88 99 93 Engine 19 | . 14 22 21 Leg 22 | . 28 22 21 Storage 11 | . 14 11 11 Protection 8 | . . 10 11 Energy Gun 20 | . 14 21 22 Ballistic Gun 8 | . 14 11 5 Naked Turns . | . . . . Heaviest Build 29 | 13 17 25 29 Greatest Support 20 | 20 20 20 20 Greatest Overweight (x) 3 | 1 . 1 3 Average Overweight (x) . | . . 1 1 Largest Inventory Capacity 8 | 6 8 8 8 Average Capacity 7 | 4 6 8 8 Most Carried 8 | 3 6 5 8 Average Carried 4 | . 2 3 7 Final Capacity 8 | 6 8 8 8 Final Carried 7 | 2 6 4 7 Class Distribution -------------------- 56% | Tank 35% | Mutant 4% | Commander-Tank Dominant Class ---------------- Mutant | -10/Materials Tank | -9/Materials Tank | -9/Storage Resources | -11 -10 -9 -9 ----------- Run | Scr Mat Mat Sto Matter Collected 566 | 65 284 174 43 Remotely . | . . . . Salvage Created 1079 | 13 280 551 235 Parts 77 | 2 22 38 15 Haulers Intercepted . | . . . . Recyclers Shooed . | . . . . Parts Field Recycled . | . . . . Retrieved Matter . | . . . . Parts Self-Destructed . | . . . . Prevented . | . . . . Kills | -11 -10 -9 -9 ------- Run | Scr Mat Mat Sto Combat Hostiles Destroyed 26 | . 7 12 7 Guns 26 | . 7 12 7 Classes Destroyed 5 | 1 3 1 . Tunneler 1 | 1 . . . Watcher 4 | . 2 2 . Swarmer 6 | . 3 . 3 Grunt 14 | . 4 9 1 Sentry 6 | . . 3 3 Best Kill Streak 5 | 1 5 5 3 Combat Bots Only 5 | . 5 5 3 Max Kills in Single Turn 2 | 1 2 1 2 Gunslinging 1 | . 1 . 1 Exploded . | . . . . Melee . | . . . . Uniques/NPCs Destroyed . | . . . . Combat | -11 -10 -9 -9 -------- Run | Scr Mat Mat Sto Damage Taken 1444 | . 180 313 951 Core 430 | . 28 27 375 Absorbed by Shields . | . . . . Core Remaining (%) 94 | 100 88 . . Volleys Fired 78 | 2 21 33 22 Largest 3 | 2 2 3 3 Hottest 201 | 60 60 133 201 Shots Fired 181 | 4 42 88 47 Gun 181 | 4 42 88 47 Cannon . | . . . . Launcher . | . . . . Special . | . . . . Kinetic 63 | 2 21 33 7 Thermal 76 | . . 40 36 Explosive . | . . . . Electromagnetic 42 | 2 21 15 4 Robot Hit Streak 25 | 1 11 15 25 Robot Miss Streak 3 | . 3 3 1 Penetration Max . | . . . . Secondary Targets 7 | . 3 3 1 Max Gunslinging Chain 1 | . 1 1 1 Shots Hit Robots 128 | 1 28 62 37 Core Hits 50 | 1 12 25 12 Critical Hits . | . . . . Critical Kills . | . . . . Critical Parts Destroyed . | . . . . Melee Attacks . | . . . . Impact . | . . . . Slashing . | . . . . Piercing . | . . . . Sneak Attacks . | . . . . Combat Hostiles . | . . . . Follow-up Attacks . | . . . . Damage Inflicted 1864 | 13 440 826 585 Guns 1830 | 13 406 826 585 Cannons . | . . . . Explosions 34 | . 34 . . Melee . | . . . . Ramming . | . . . . Kinetic 506 | . 186 251 69 Thermal 931 | . 34 427 470 Explosive . | . . . . Electromagnetic 427 | 13 220 148 46 Impact . | . . . . Slashing . | . . . . Piercing . | . . . . Highest Corruption . | . . . . Average Corruption . | . . . . Corruption Purged . | . . . . Overload Shots . | . . . . Overflow Damage 13 | . 13 . . Projectiles . | . . . . Explosions 13 | . 13 . . Melee . | . . . . Knockbacks . | . . . . Impact . | . . . . Kinetic . | . . . . Secondary . | . . . . Self-Inflicted Damage . | . . . . Shots . | . . . . Rammed . | . . . . Targets Rammed . | . . . . Kicked . | . . . . Crushed . | . . . . Highest Temperature 375 | . 36 363 375 Average Temperature 117 | . 21 116 141 Received Heat Transfer 735 | . 102 189 444 Effects 5 | . . 3 2 Shutdowns 1 | . . 1 . Energy Bleed 1 | . . 1 . Interference 2 | . . 1 1 Matter Decay 1 | . . . 1 Siege Activations . | . . . . Robots Corrupted . | . . . . Combat Hostiles . | . . . . Parts Fried 3 | . 1 2 . Impact Corruptions . | . . . . Robots Melted . | . . . . Combat Hostiles . | . . . . Parts Melted 6 | . 1 1 4 Heat Transferred 2011 | . 50 962 999 Parts Sabotaged . | . . . . Parts Stolen . | . . . . Parts Stripped . | . . . . Power Chain Reactions 1 | . 1 . . Missiles Intercepted . | . . . . Alert | -11 -10 -9 -9 ------- Run | Scr Mat Mat Sto Peak Influence 350 | 5 225 333 350 Initial 88 | . 2 81 88 Average 156 | 1 109 197 165 Maximum Alert Level 1 | . 1 1 1 Low Security (%) 66 | 100 71 54 69 Level 1 33 | . 28 45 30 Level 2 . | . . . . Level 3 . | . . . . Level 4 . | . . . . Level 5 . | . . . . High Security . | . . . . Max Security . | . . . . Squads Dispatched 9 | . 1 3 5 Investigation 1 | . 1 . . Extermination . | . . . . Reinforcement 6 | . . 3 3 Assault 2 | . . . 2 Garrison . | . . . . Intercept . | . . . . Construction Impeded . | . . . . Haulers Reinforced . | . . . . Stealth | -11 -10 -9 -9 --------- Run | Scr Mat Mat Sto Distress Signals 6 | . 1 3 2 Communications Jammed . | . . . . Distress Signals . | . . . . Times Spotted 55 | . 11 16 28 Peak Tracking Total 10 | . 5 5 10 Tactical Retreats 2 | . . . 2 Traps | -11 -10 -9 -9 ------- Run | Scr Mat Mat Sto Traps Triggered 1 | . 1 . . Indirectly . | . . . . Trap Hack Attempts . | . . . . Triggered . | . . . . Disarmed . | . . . . Reprogrammed . | . . . . Reused . | . . . . Traps Extracted . | . . . . Installed . | . . . . Triggered . | . . . . Machines | -11 -10 -9 -9 ---------- Run | Scr Mat Mat Sto Machines Disabled 1 | . 1 . . Max in Single Turn 1 | . 1 . . Machines Sabotaged . | . . . . Garrisons Compromised . | . . . . Overloaded Fab Kills . | . . . . Fab Network Shutdowns . | . . . . Hacking | -11 -10 -9 -9 --------- Run | Scr Mat Mat Sto Machines Accessed 4 | . . 1 3 Terminals 4 | . . 1 3 Fabricators . | . . . . Repair Stations . | . . . . Recycling Units . | . . . . Scanalyzers . | . . . . Garrison Access . | . . . . Total Hacks 5 | . . 1 4 Successful 4 | . . 1 3 Failed 1 | . . . 1 Catastrophic . | . . . . Database Lockouts . | . . . . Manual . | . . . . Terminals 5 | . . 1 4 Fabricators . | . . . . Repair Stations . | . . . . Recycling Units . | . . . . Scanalyzers . | . . . . Garrison Access . | . . . . Terminal Hacks 4 | . . 1 3 Prototype ID Bank 1 | . . 1 . Open Door 1 | . . . 1 Alert Level 1 | . . . 1 Zone Layout 1 | . . . 1 Fabricator Hacks . | . . . . Repair Station Hacks . | . . . . Recycling Unit Hacks . | . . . . Scanalyzer . | . . . . Garrison Access Hacks . | . . . . Unauthorized Hacks . | . . . . Terminals . | . . . . Fabricators . | . . . . Repair Stations . | . . . . Recycling Units . | . . . . Scanalyzers . | . . . . Garrison Access . | . . . . Data Cores Recovered . | . . . . Used . | . . . . Hacking Detections 2 | . . 1 1 Full Trace Events . | . . . . Feedback Events . | . . . . Feedback Blocked . | . . . . Robot Schematics Acquired . | . . . . Robots Built . | . . . . Matter . | . . . . Time . | . . . . Total Robot Build Rating . | . . . . Part Schematics Acquired . | . . . . Parts Built . | . . . . Matter . | . . . . Time . | . . . . Total Part Build Rating . | . . . . Parts Repaired . | . . . . Time . | . . . . Parts Recycled . | . . . . Recycled Matter . | . . . . Retrieved Matter . | . . . . Retrieved Components . | . . . . Parts Scanalyzed . | . . . . Part Schematics Acquired . | . . . . Parts Damaged . | . . . . Bothacking | -11 -10 -9 -9 ------------ Run | Scr Mat Mat Sto Used RIF Installer . | . . . . Robots Hacked . | . . . . Non-combat . | . . . . Combat . | . . . . Robot Hacks Applied . | . . . . Relay Couplers Released . | . . . . Robots Rewired . | . . . . Allies Hacked . | . . . . Hacks Repelled . | . . . . Allies | -11 -10 -9 -9 -------- Run | Scr Mat Mat Sto Total Allies 12 | . . . 12 Largest Group 12 | . . . 12 Highest-Rated Group 150 | . . . 150 Highest-Rated Ally 31 | . . . 31 Total Orders . | . . . . Ally Attacks 104 | . . . 104 Total Damage 1296 | . . . 1296 Kills 19 | . . . 19 Allies Corrupted . | . . . . Allies Melted . | . . . . Intel | -11 -10 -9 -9 ------- Run | Scr Mat Mat Sto Robot Analysis Total . | . . . . Derelict Logs Recovered . | . . . . Drone Launches . | . . . . Drone Recoveries . | . . . . Exploration | -11 -10 -9 -9 ------------- Run | Scr Mat Mat Sto Turns Passed 1550 | 87 292 508 663 Spaces Moved 884 | 72 185 253 374 Core 48 | 38 . . 10 Treads . | . . . . Legs 836 | 34 185 253 364 Wheels . | . . . . Hover . | . . . . Flight . | . . . . Fastest Speed 50 | 50 120 150 120 Average Speed 139 | 91 120 150 151 Slowest Speed 200 | 120 120 150 200 Overloaded Moves . | . . . . Propulsion Burnouts . | . . . . Robots Hopped . | . . . . Cave-ins Triggered . | . . . . Exploration Rate (%) 26 | 3 30 25 48 Regions Visited 3 Branch Regions 1 Pre-discovered Areas . | . . . . Known Exits Taken 1 | . 1 . . Unknown Exits Taken 2 | 1 . 1 . Scrap Searched . | . . . . Spaces Dug . | . . . . Terrain Destroyed 6 | . 6 . . Melee . | . . . . Projectile . | . . . . AOE 6 | . 6 . . Terrain Rammed . | . . . . Walls Destroyed . | . . . . Machines Disabled . | . . . . Actions | -11 -10 -9 -9 --------- Run | Scr Mat Mat Sto Total 1044 | 88 212 312 432 Wait 35 | . . 11 24 Move 881 | 71 184 252 374 Hop . | . . . . Pick Up 24 | 8 5 4 7 Fast Attach . | . . . . Attach 16 | 6 1 6 3 Detach 2 | . . 2 . Swap 4 | 1 1 1 1 Drop 4 | . . 3 1 Fire 78 | 2 21 33 22 Melee . | . . . . Ram . | . . . . Kick . | . . . . Crush . | . . . . Escape Stasis . | . . . . Rewire . | . . . . Trap . | . . . . Miscellaneous . | . . . . Route ------- -11/Scrapyard -10/Materials -9/Materials -9/Storage History --------- Turn | Location | Event 23 | -11/Scrapyard | Discovered new exit (range 16) 88 | -11/Scrapyard | Entered Materials 317 | -10/Materials | Build established: Mutant 371 | -10/Materials | Discovered new exit (range 6) 379 | -10/Materials | Identified exit to Materials 380 | -10/Materials | Entered another Materials area 380 | -9/Materials | Evolved 2 slots: Power x1, Weapon x1 868 | -9/Materials | Discovered new exit (range 7) 888 | -9/Materials | Entered Storage 905 | -9/Storage | Build established: Tank 1105 | -9/Storage | Assisted by bots powering up and referring to "LRC-V3" 1139 | -9/Storage | Met a pair of Derelict thieves 1516 | -9/Storage | Core integrity fell below 50% 1540 | -9/Storage | Core integrity fell below 20% 1551 | -9/Storage | Destroyed by G-34 Mercenary with Small Laser Last Messages --------------- 01408_ ALERT: Hostiles spotted, dispatching reinforcements to Terminal S007. 01420_ Heat Sink melted. 01420_ Imp. Ion Engine melted. 01420_ Y-45 Defender destroyed. 01427_ Overheating: System interference. 01427_ Beamcaster temporarily disabled. 01444_ U-05 Engineer lays Concrete. 01483_ Y-45 Defender destroyed. 01491_ Pulse Rifle destroyed. 01509_ Beamcaster destroyed. 01512_ Acquired Beam Rifle. 01522_ Aluminum Leg destroyed. 01522_ Lgt. Ion Engine destroyed. 01527_ Heat Sink melted. 01527_ G-34 Mercenary destroyed. 01528_ Beam Rifle destroyed. 01531_ Ion Engine destroyed. 01531_ Aluminum Leg destroyed. 01537_ G-34 Mercenary destroyed. Map ----- +----------------------------------------------------+ | | | | | | | | | | | | | ????????????????????????????????? | | ????????????????????????????????? | | ????????????????????????????????? | | ????????????????????????????????? | | ????????????????????????????????? | | ????????????????????????????????? | | ????????????????????????????????? | | ????????????????????????????????? | | ????????????????????????????????? | | ????????????????????????????????? | | ?????????""""???????????????????? | | ????????## #???????????????????? | | ??##?????T #???????????????????? | | ###T###### #???????????????????? | | # # #???????????????????? | | #""" + #???????????????????? | | #""" = # #???????????????????? | | #""" %Yg # #???????????????????? | | #"""g %* # #???????????????????? | | #""" @# #???????????????????? | | # # #???????????????????? | | # # #???????????????????? | | # = ! # #???????????????????? | | ####%##### #???????????????????? | | ???###?### #???????????????????? | | ???????#T# #???????????????????? | | ???????" / #???????????????????? | | ????#]] # #???????????????????? | | ????#]]" # #???????????????????? | | ????##?#?# #???????????????????? | | ?????????# #???????????????????? | | ?????????# #???????????????????? | | ????????## ##??????????????????? | | ????????# #???????????###????? | | ???###### #??????????? ????? | | ???#** # #??????????? ????? | | ???#** + #??????????? ????? | | ???#** ##%###???????????? #???? | | ???#####?#!#?????????????? #???? | | ?????????# #?????????????? ???? | | ?????#####+####+??????????# #???? | | ?????# # ??????????# #???? | | ?????# # ??????????# #???? | | ?????# # ########### ##### | +----------------------------------------------------+ Best States ------------- Heat Dissipation 28 Energy Generation 15 Energy Capacity 275 Matter Stores 300 Matter Capacity 300 Sight Range 16 Terrain Scan Density 10 Resistance: KI 20 Resistance: TH 20 Resistance: EX 20 Resistance: EM 20 Resistance: I 20 Resistance: S 20 Resistance: P 20 Power Shielding 66 Evasion (%) 50 Offensive Hacking 10 Item Schematics ----------------- None Robot Schematics ------------------ None Fabricated ------------ Nothing Alien Tech Used ----------------- None Achievements -------------- Slippery One The More The Merrier Challenges ------------ None Game ------ Seed TractorCloakingBox Manual? 0 Play Time 00:20:24 Cumulative 6.7 hours Start 2020.10.22 @ 20:21:03 End 2020.10.22 @ 20:41:37 Sessions 1 Manual Loads 0 Difficulty Adventurer Special Mode None Game No. 15 Rogue 14 Adventurer 1 Explorer 0 Win Type - Total 0 Types 0/0/0/0/0/0/0/0/0 Lore% 1 Gallery% 14 Achievement% 11 Wizard Run 0 Options --------- ASCII 0 Keyboard 0 Movement Arrows Keybinds 0 Fullscreen 1 Font 18/SmallcapsGlow Map View 76x50 Tactical HUD 1 Map Filters NONE Filters NONE Steam 1 RUN: 6d6de4a5-e9fe-49d0-818c-4331b5024495